fUSD/lending_fUSD_20260608
["ID","MTS","AMOUNT","RATE_DAILY","PERIOD"]
[424434190,1780885840000,-457.12873569,0.00013698,2]
[424434222,1780885840000,-500.0,0.00013698,2]
[424434163,1780885840000,-500.0,0.00013698,2]
[424434228,1780885840000,-168.74,0.00013699,2]
[424434251,1780885840000,-500.0,0.00013699,2]
[424434258,1780885840000,-500.0,0.00013699,2]
[424434268,1780885840000,-166.66,0.00013836,2]
[424434259,1780885840000,-1000.0,0.00013699,2]
[424434270,1780885840000,-150.0,0.00013862,2]
[424434257,1780885840000,-500.0,0.00013699,2]
[424434269,1780885840000,-150.0,0.00013847,2]
[424434261,1780885840000,-1000.0,0.00013699,15]
[424434266,1780885840000,-150.0,0.00013787,2]
[424434262,1780885840000,-1571.88,0.000137,2]
[424434265,1780885840000,-150.0,0.00013769,2]
[424434263,1780885840000,-150.0,0.00013702,2]
[424434264,1780885840000,-150.0,0.00013727,2]
[424434267,1780885840000,-177.55548,0.00013794,2]
[424434272,1780885840000,-150.0,0.00013916,2]
[424434282,1780885840000,-2321.0,0.00014,2]
[424434279,1780885840000,-150.0,0.00013987,2]
[424434271,1780885840000,-150.0,0.00013907,2]
[424434281,1780885840000,-2324.80038927,0.00014,2]
[424434276,1780885840000,-150.0,0.00013956,2]
[424434278,1780885840000,-166.66,0.00013973,2]
[424434275,1780885840000,-173.28,0.00013944,2]
[424434280,1780885840000,-14281.61325543,0.0001399,2]
[424434277,1780885840000,-150.0,0.00013967,2]
[424434274,1780885840000,-631.23158625,0.00013935,2]
[424434273,1780885840000,-59994.49504364,0.00013917,2]
[424434221,1780885840000,-616.30777431,0.00013698,2]
[424434256,1780885840000,-500.0,0.00013699,2]
[424434252,1780885840000,-500.0,0.00013699,2]
[424434260,1780885840000,-1000.0,0.00013699,15]
[424434245,1780885840000,-500.0,0.00013699,2]
[424434223,1780885840000,-500.0,0.00013698,2]
[424434253,1780885840000,-500.0,0.00013699,2]
[424434225,1780885840000,-497.98493118,0.00013698,2]
[424434226,1780885840000,-166.66,0.00013699,2]
[424434227,1780885840000,-200.0,0.00013699,2]
[424434224,1780885840000,-500.0,0.00013698,2]
[424434229,1780885840000,-843.7,0.00013699,2]
[424434230,1780885840000,-29999.99,0.00013699,2]
[424434232,1780885840000,-329.90805218,0.00013699,2]
[424434234,1780885840000,-500.0,0.00013699,2]
[424434243,1780885840000,-500.0,0.00013699,2]
[424434239,1780885840000,-500.0,0.00013699,2]
[424434235,1780885840000,-500.0,0.00013699,2]
[424434233,1780885840000,-500.0,0.00013699,2]
[424434242,1780885840000,-500.0,0.00013699,2]
[424434238,1780885840000,-500.0,0.00013699,2]
[424434255,1780885840000,-500.0,0.00013699,2]
[424434244,1780885840000,-500.0,0.00013699,2]
[424434254,1780885840000,-577.04372376,0.00013699,2]
[424434249,1780885840000,-500.0,0.00013699,2]
[424434250,1780885840000,-500.0,0.00013699,2]
[424434248,1780885840000,-500.0,0.00013699,2]
[424434247,1780885840000,-500.0,0.00013699,2]
[424434246,1780885840000,-500.0,0.00013699,2]
[424434241,1780885840000,-500.0,0.00013699,2]
[424434236,1780885840000,-500.0,0.00013699,2]
[424434231,1780885840000,-9999.99,0.00013699,2]
[424434237,1780885840000,-500.0,0.00013699,2]
[424434240,1780885840000,-500.0,0.00013699,2]
[424434333,1780885841000,-1036.0,0.00014451,2]
[424434321,1780885841000,-1036.0,0.00014451,2]
[424434326,1780885841000,-1036.0,0.00014451,2]
[424434323,1780885841000,-621.0,0.00014451,2]
[424434327,1780885841000,-621.0,0.00014451,2]
[424434322,1780885841000,-1036.0,0.00014451,2]
[424434320,1780885841000,-150.0,0.00014447,2]
[424434317,1780885841000,-150.0,0.00014387,2]
[424434318,1780885841000,-631.23158625,0.00014417,2]
[424434319,1780885841000,-150.0,0.00014424,2]
[424434325,1780885841000,-621.0,0.00014451,2]
[424434332,1780885841000,-621.0,0.00014451,2]
[424434328,1780885841000,-1036.0,0.00014451,2]
[424434339,1780885841000,-621.0,0.00014451,2]
[424434331,1780885841000,-1036.0,0.00014451,2]
[424434329,1780885841000,-1036.0,0.00014451,2]
[424434330,1780885841000,-621.0,0.00014451,2]
[424434335,1780885841000,-621.0,0.00014451,2]
[424434337,1780885841000,-621.0,0.00014451,2]
[424434345,1780885841000,-621.0,0.00014451,2]
[424434334,1780885841000,-500.0,0.00014451,2]
[424434336,1780885841000,-1036.0,0.00014451,2]
[424434338,1780885841000,-1036.0,0.00014451,2]
[424434341,1780885841000,-1036.0,0.00014451,2]
[424434343,1780885841000,-500.0,0.00014451,2]
[424434340,1780885841000,-500.0,0.00014451,2]
[424434315,1780885841000,-150.0,0.00014344,2]
[424434324,1780885841000,-1036.0,0.00014451,2]
[424434316,1780885841000,-166.66,0.00014384,2]
[424434285,1780885841000,-150.0,0.00014027,2]
[424434314,1780885841000,-350.0,0.00014341,2]
[424434283,1780885841000,-250.0,0.00014,2]
[424434344,1780885841000,-1036.0,0.00014451,2]
[424434296,1780885841000,-150.0,0.00014147,2]
[424434295,1780885841000,-150.0,0.00014143,2]
[424434286,1780885841000,-150.0,0.0001405,2]
[424434289,1780885841000,-168.3,0.00014109,2]
[424434287,1780885841000,-185.173739,0.00014053,2]
[424434288,1780885841000,-150.0,0.00014087,2]
[424434292,1780885841000,-535.25238516,0.00014123,2]
[424434284,1780885841000,-50000.0,0.00014,2]
[424434290,1780885841000,-166.66,0.0001411,2]
[424434291,1780885841000,-736.0,0.00014123,2]
[424434294,1780885841000,-183.0,0.00014137,2]
[424434293,1780885841000,-150.0,0.0001413,2]
[424434297,1780885841000,-150.0,0.00014207,2]
[424434308,1780885841000,-578.33888544,0.00014316,2]
[424434300,1780885841000,-59994.49504364,0.00014245,2]
[424434302,1780885841000,-350.0,0.00014258,2]
[424434301,1780885841000,-166.66,0.00014247,2]
[424434299,1780885841000,-150.0,0.00014237,2]
[424434309,1780885841000,-500.0,0.00014316,2]
[424434298,1780885841000,-1840.15402341,0.0001421,7]
[424434303,1780885841000,-150.0,0.00014267,2]
[424434307,1780885841000,-500.0,0.00014316,2]
[424434306,1780885841000,-788.08,0.00014315,2]
[424434305,1780885841000,-151.0,0.00014278,2]
[424434311,1780885841000,-150.0,0.00014331,2]
[424434310,1780885841000,-150.0,0.00014327,2]
[424434312,1780885841000,-172.94132264,0.00014339,2]
[424434313,1780885841000,-161.47066132,0.00014339,2]
[424434342,1780885841000,-621.0,0.00014451,2]
[424434358,1780885841000,-1036.0,0.00014451,2]
[424434346,1780885841000,-500.0,0.00014451,2]
[424434383,1780885841000,-500.0,0.00014451,2]
[424434377,1780885841000,-621.0,0.00014451,2]
[424434382,1780885841000,-500.0,0.00014451,2]
[424434387,1780885841000,-1036.0,0.00014451,2]
[424434397,1780885841000,-1036.0,0.00014451,2]
[424434398,1780885841000,-615.0,0.00014451,2]
[424434389,1780885841000,-500.0,0.00014451,2]
[424434388,1780885841000,-500.0,0.00014451,2]
[424434386,1780885841000,-500.0,0.00014451,2]
[424434390,1780885841000,-500.0,0.00014451,2]
[424434393,1780885841000,-500.0,0.00014451,2]
[424434392,1780885841000,-621.0,0.00014451,2]
[424434396,1780885841000,-502.03625046,0.00014451,2]
[424434378,1780885841000,-1036.0,0.00014451,2]
[424434391,1780885841000,-500.0,0.00014451,2]
[424434395,1780885841000,-500.0,0.00014451,2]
[424434399,1780885841000,-615.0,0.00014451,2]
[424434403,1780885841000,-615.0,0.00014451,2]
[424434405,1780885841000,-615.0,0.00014451,2]
[424434349,1780885841000,-1036.0,0.00014451,2]
[424434404,1780885841000,-615.0,0.00014451,2]
[424434402,1780885841000,-615.0,0.00014451,2]
[424434401,1780885841000,-621.0,0.00014451,2]
[424434407,1780885841000,-615.0,0.00014451,2]
[424434408,1780885841000,-1040.47862891,0.00014451,2]
[424434409,1780885841000,-615.0,0.00014451,2]
[424434400,1780885841000,-615.0,0.00014451,2]
[424434410,1780885841000,-615.0,0.00014451,2]
[424434394,1780885841000,-500.0,0.00014451,2]
[424434375,1780885841000,-621.0,0.00014451,2]
[424434406,1780885841000,-615.0,0.00014451,2]
[424434379,1780885841000,-500.0,0.00014451,2]
[424434380,1780885841000,-500.0,0.00014451,2]
[424434348,1780885841000,-1036.0,0.00014451,2]
[424434357,1780885841000,-621.0,0.00014451,2]
[424434352,1780885841000,-1036.0,0.00014451,2]
[424434353,1780885841000,-621.0,0.00014451,2]
[424434360,1780885841000,-621.0,0.00014451,2]
[424434351,1780885841000,-621.0,0.00014451,2]
[424434359,1780885841000,-500.0,0.00014451,2]
[424434354,1780885841000,-500.0,0.00014451,2]
[424434356,1780885841000,-500.0,0.00014451,2]
[424434355,1780885841000,-1036.0,0.00014451,2]
[424434362,1780885841000,-621.0,0.00014451,2]
[424434364,1780885841000,-500.0,0.00014451,2]
[424434361,1780885841000,-500.0,0.00014451,2]
[424434350,1780885841000,-500.0,0.00014451,2]
[424434365,1780885841000,-621.0,0.00014451,2]
[424434381,1780885841000,-621.0,0.00014451,2]
[424434372,1780885841000,-500.0,0.00014451,2]
[424434376,1780885841000,-1036.0,0.00014451,2]
[424434385,1780885841000,-500.0,0.00014451,2]
[424434384,1780885841000,-500.0,0.00014451,2]
[424434373,1780885841000,-500.0,0.00014451,2]
[424434374,1780885841000,-355.60355233,0.00014451,2]
[424434368,1780885841000,-500.0,0.00014451,2]
[424434369,1780885841000,-500.0,0.00014451,2]
[424434370,1780885841000,-621.0,0.00014451,2]
[424434363,1780885841000,-1036.0,0.00014451,2]
[424434371,1780885841000,-1036.0,0.00014451,2]
[424434367,1780885841000,-500.0,0.00014451,2]
[424434366,1780885841000,-621.0,0.00014451,2]
[424434434,1780885842000,-500.0,0.00014451,2]
[424434451,1780885842000,-446.0,0.00014452,2]
[424434436,1780885842000,-397.57156841,0.00014451,2]
[424434435,1780885842000,-500.0,0.00014451,2]
[424434432,1780885842000,-615.0,0.00014451,2]
[424434433,1780885842000,-500.0,0.00014451,2]
[424434441,1780885842000,-632.47344829,0.00014451,2]
[424434452,1780885842000,-500.0,0.00014452,2]
[424434440,1780885842000,-615.0,0.00014451,2]
[424434450,1780885842000,-500.0,0.00014452,2]
[424434443,1780885842000,-505.49510151,0.00014452,2]
[424434449,1780885842000,-446.0,0.00014452,2]
[424434444,1780885842000,-500.0,0.00014452,2]
[424434447,1780885842000,-500.0,0.00014452,2]
[424434445,1780885842000,-501.87117652,0.00014452,2]
[424434448,1780885842000,-446.0,0.00014452,2]
[424434446,1780885842000,-500.0,0.00014452,2]
[424434454,1780885842000,-500.0,0.00014452,2]
[424434430,1780885842000,-500.0,0.00014451,2]
[424434442,1780885842000,-500.0,0.00014452,2]
[424434427,1780885842000,-199.68095837,0.00014451,2]
[424434416,1780885842000,-615.0,0.00014451,2]
[424434437,1780885842000,-615.0,0.00014451,2]
[424434455,1780885842000,-500.0,0.00014452,2]
[424434411,1780885842000,-615.0,0.00014451,2]
[424434412,1780885842000,-615.0,0.00014451,2]
[424434414,1780885842000,-636.89239214,0.00014451,2]
[424434424,1780885842000,-536.89809248,0.00014451,2]
[424434417,1780885842000,-500.0,0.00014451,2]
[424434413,1780885842000,-615.0,0.00014451,2]
[424434425,1780885842000,-150.0,0.00014451,2]
[424434415,1780885842000,-500.0,0.00014451,2]
[424434439,1780885842000,-615.0,0.00014451,2]
[424434421,1780885842000,-500.0,0.00014451,2]
[424434420,1780885842000,-615.0,0.00014451,2]
[424434418,1780885842000,-615.0,0.00014451,2]
[424434423,1780885842000,-500.0,0.00014451,2]
[424434419,1780885842000,-500.0,0.00014451,2]
[424434426,1780885842000,-500.0,0.00014451,2]
[424434428,1780885842000,-615.0,0.00014451,2]
[424434429,1780885842000,-500.0,0.00014451,2]
[424434438,1780885842000,-615.0,0.00014451,2]
[424434431,1780885842000,-500.0,0.00014451,2]
[424434422,1780885842000,-150.0,0.00014451,2]
[424434453,1780885842000,-446.0,0.00014452,2]
[424434502,1780885842000,-500.0,0.00014452,2]
[424434459,1780885842000,-500.0,0.00014452,2]
[424434483,1780885842000,-500.0,0.00014452,2]
[424434482,1780885842000,-500.0,0.00014452,2]
[424434487,1780885842000,-415.22640013,0.00014452,2]
[424434485,1780885842000,-500.0,0.00014452,2]
[424434488,1780885842000,-150.0,0.00014452,2]
[424434489,1780885842000,-150.0,0.00014452,2]
[424434486,1780885842000,-500.0,0.00014452,2]
[424434478,1780885842000,-213.23313711,0.00014452,2]
[424434490,1780885842000,-210.66083121,0.00014452,2]
[424434484,1780885842000,-500.0,0.00014452,2]
[424434491,1780885842000,-500.0,0.00014452,2]
[424434496,1780885842000,-500.0,0.00014452,2]
[424434495,1780885842000,-500.0,0.00014452,2]
[424434494,1780885842000,-500.0,0.00014452,2]
[424434493,1780885842000,-500.0,0.00014452,2]
[424434508,1780885842000,-500.0,0.00014452,2]
[424434505,1780885842000,-500.0,0.00014452,2]
[424434501,1780885842000,-151.47284327,0.00014452,2]
[424434503,1780885842000,-500.0,0.00014452,2]
[424434458,1780885842000,-446.0,0.00014452,2]
[424434492,1780885842000,-520.4437061,0.00014452,2]
[424434481,1780885842000,-460.0,0.00014452,2]
[424434499,1780885842000,-329.36324013,0.00014452,2]
[424434479,1780885842000,-446.0,0.00014452,2]
[424434480,1780885842000,-446.0,0.00014452,2]
[424434460,1780885842000,-446.0,0.00014452,2]
[424434463,1780885842000,-446.0,0.00014452,2]
[424434465,1780885842000,-446.0,0.00014452,2]
[424434462,1780885842000,-446.0,0.00014452,2]
[424434461,1780885842000,-446.0,0.00014452,2]
[424434464,1780885842000,-446.0,0.00014452,2]
[424434456,1780885842000,-446.0,0.00014452,2]
[424434467,1780885842000,-446.0,0.00014452,2]
[424434466,1780885842000,-174.9440075,0.00014452,2]
[424434457,1780885842000,-500.0,0.00014452,2]
[424434468,1780885842000,-446.0,0.00014452,2]
[424434470,1780885842000,-446.0,0.00014452,2]
[424434473,1780885842000,-446.0,0.00014452,2]
[424434475,1780885842000,-446.0,0.00014452,2]
[424434472,1780885842000,-446.0,0.00014452,2]
[424434476,1780885842000,-500.0,0.00014452,2]
[424434469,1780885842000,-446.0,0.00014452,2]
[424434474,1780885842000,-446.0,0.00014452,2]
[424434471,1780885842000,-446.0,0.00014452,2]
[424434477,1780885842000,-500.0,0.00014452,2]
[424434533,1780885843000,-500.0,0.00014452,2]
[424434537,1780885843000,-500.0,0.00014452,2]
[424434530,1780885843000,-500.0,0.00014452,2]
[424434535,1780885843000,-150.0,0.00014452,2]
[424434534,1780885843000,-500.0,0.00014452,2]
[424434536,1780885843000,-500.0,0.00014452,2]
[424434532,1780885843000,-500.0,0.00014452,2]
[424434543,1780885843000,-477.13919455,0.00014452,2]
[424434540,1780885843000,-196.12112809,0.00014452,2]
[424434539,1780885843000,-500.0,0.00014452,2]
[424434546,1780885843000,-500.0,0.00014452,2]
[424434545,1780885843000,-500.0,0.00014452,2]
[424434527,1780885843000,-500.0,0.00014452,2]
[424434541,1780885843000,-500.0,0.00014452,2]
[424434538,1780885843000,-150.0,0.00014452,2]
[424434531,1780885843000,-500.0,0.00014452,2]
[424434518,1780885843000,-500.0,0.00014452,2]
[424434528,1780885843000,-500.0,0.00014452,2]
[424434542,1780885843000,-500.0,0.00014452,2]
[424434510,1780885843000,-500.0,0.00014452,2]
[424434513,1780885843000,-500.0,0.00014452,2]
[424434512,1780885843000,-500.0,0.00014452,2]
[424434515,1780885843000,-500.0,0.00014452,2]
[424434514,1780885843000,-500.0,0.00014452,2]
[424434517,1780885843000,-500.0,0.00014452,2]
[424434516,1780885843000,-500.0,0.00014452,2]
[424434520,1780885843000,-565.06229658,0.00014452,2]
[424434519,1780885843000,-500.0,0.00014452,2]
[424434521,1780885843000,-500.0,0.00014452,2]
[424434523,1780885843000,-500.0,0.00014452,2]
[424434526,1780885843000,-500.0,0.00014452,2]
[424434525,1780885843000,-500.0,0.00014452,2]
[424434522,1780885843000,-500.0,0.00014452,2]
[424434529,1780885843000,-500.0,0.00014452,2]
[424434547,1780885843000,-500.0,0.00014452,2]
[424434544,1780885843000,-500.0,0.00014452,2]
[424434577,1780885843000,-150.0,0.00014799,2]
[424434568,1780885843000,-1100.0,0.000146,5]
[424434570,1780885843000,-150.0,0.00014612,2]
[424434571,1780885843000,-150.0,0.00014627,2]
[424434572,1780885843000,-150.0,0.00014687,2]
[424434576,1780885843000,-150.0,0.00014772,2]
[424434575,1780885843000,-150.0,0.00014747,2]
[424434574,1780885843000,-150.0,0.00014705,2]
[424434573,1780885843000,-1100.0,0.000147,5]
[424434579,1780885843000,-150.0,0.00014806,2]
[424434578,1780885843000,-1100.0,0.000148,5]
[424434581,1780885843000,-150.0,0.00014866,2]
[424434582,1780885843000,-150.0,0.00014893,2]
[424434580,1780885843000,-350.0,0.00014825,2]
[424434583,1780885843000,-300.0,0.00014899,2]
[424434548,1780885843000,-500.0,0.00014452,2]
[424434566,1780885843000,-150.0,0.00014567,2]
[424434565,1780885843000,-150.0,0.00014558,2]
[424434569,1780885843000,-350.0,0.0001461,2]
[424434564,1780885843000,-1500.0,0.00014518,2]
[424434549,1780885843000,-500.0,0.00014452,2]
[424434550,1780885843000,-500.0,0.00014452,2]
[424434552,1780885843000,-500.0,0.00014452,2]
[424434554,1780885843000,-500.0,0.00014452,2]
[424434567,1780885843000,-59994.49504364,0.00014572,2]
[424434553,1780885843000,-500.0,0.00014452,2]
[424434556,1780885843000,-429.49046974,0.00014452,2]
[424434555,1780885843000,-500.0,0.00014452,2]
[424434551,1780885843000,-500.0,0.00014452,2]
[424434557,1780885843000,-500.0,0.00014452,2]
[424434558,1780885843000,-500.0,0.00014452,2]
[424434561,1780885843000,-350.0,0.00014505,2]
[424434559,1780885843000,-179.0070577,0.00014452,2]
[424434560,1780885843000,-150.0,0.00014487,2]
[424434562,1780885843000,-150.0,0.00014507,2]
[424434563,1780885843000,-150.0,0.00014518,2]
[424434611,1780885844000,-500.0,0.000149,2]
[424434619,1780885844000,-500.0,0.000149,2]
[424434614,1780885844000,-500.0,0.000149,2]
[424434616,1780885844000,-500.0,0.000149,2]
[424434612,1780885844000,-500.0,0.000149,2]
[424434615,1780885844000,-325.09695801,0.000149,2]
[424434613,1780885844000,-500.0,0.000149,2]
[424434629,1780885844000,-500.0,0.000149,2]
[424434617,1780885844000,-500.0,0.000149,2]
[424434618,1780885844000,-500.0,0.000149,2]
[424434630,1780885844000,-500.0,0.000149,2]
[424434620,1780885844000,-500.0,0.000149,2]
[424434621,1780885844000,-500.0,0.000149,2]
[424434625,1780885844000,-500.0,0.000149,2]
[424434626,1780885844000,-500.0,0.000149,2]
[424434628,1780885844000,-500.0,0.000149,2]
[424434627,1780885844000,-500.0,0.000149,2]
[424434624,1780885844000,-500.0,0.000149,2]
[424434623,1780885844000,-500.0,0.000149,2]
[424434631,1780885844000,-500.0,0.000149,2]
[424434609,1780885844000,-500.0,0.000149,2]
[424434622,1780885844000,-500.0,0.000149,2]
[424434610,1780885844000,-500.0,0.000149,2]
[424434587,1780885844000,-25000.0,0.000149,3]
[424434605,1780885844000,-500.0,0.000149,2]
[424434585,1780885844000,-489.84630773,0.000149,2]
[424434584,1780885844000,-788.08,0.00014899,2]
[424434586,1780885844000,-631.23158625,0.000149,2]
[424434589,1780885844000,-665.21914617,0.000149,2]
[424434592,1780885844000,-1100.0,0.000149,5]
[424434591,1780885844000,-59994.49504364,0.000149,2]
[424434593,1780885844000,-176.00672802,0.000149,2]
[424434594,1780885844000,-151.0,0.000149,2]
[424434595,1780885844000,-4600.29315846,0.000149,2]
[424434604,1780885844000,-500.0,0.000149,2]
[424434596,1780885844000,-151.0,0.000149,2]
[424434598,1780885844000,-784.767606,0.000149,2]
[424434597,1780885844000,-784.767606,0.000149,2]
[424434599,1780885844000,-784.767606,0.000149,2]
[424434600,1780885844000,-784.767606,0.000149,2]
[424434602,1780885844000,-500.0,0.000149,2]
[424434608,1780885844000,-500.0,0.000149,2]
[424434607,1780885844000,-500.0,0.000149,2]
[424434603,1780885844000,-500.0,0.000149,2]
[424434606,1780885844000,-500.0,0.000149,2]
[424434601,1780885844000,-500.0,0.000149,2]
[424434633,1780885844000,-500.0,0.000149,2]
[424434659,1780885844000,-151.0,0.00014989,2]
[424434632,1780885844000,-500.0,0.000149,2]
[424434658,1780885844000,-151.0,0.00014989,2]
[424434660,1780885844000,-179.930003,0.00014989,2]
[424434662,1780885844000,-151.0,0.00014997,2]
[424434674,1780885844000,-500.0,0.00014999,2]
[424434673,1780885844000,-500.0,0.00014999,2]
[424434666,1780885844000,-500.0,0.00014999,2]
[424434671,1780885844000,-500.0,0.00014999,2]
[424434664,1780885844000,-500.0,0.00014999,2]
[424434665,1780885844000,-500.0,0.00014999,2]
[424434668,1780885844000,-500.0,0.00014999,2]
[424434667,1780885844000,-500.0,0.00014999,2]
[424434669,1780885844000,-500.0,0.00014999,2]
[424434672,1780885844000,-500.0,0.00014999,2]
[424434676,1780885844000,-500.0,0.00014999,2]
[424434675,1780885844000,-500.0,0.00014999,2]
[424434679,1780885844000,-788.08,0.00014999,2]
[424434678,1780885844000,-221.05414791,0.00014999,2]
[424434677,1780885844000,-500.0,0.00014999,2]
[424434680,1780885844000,-788.08,0.00014999,2]
[424434681,1780885844000,-788.08,0.00014999,2]
[424434634,1780885844000,-500.0,0.000149,2]
[424434655,1780885844000,-151.0,0.00014989,2]
[424434656,1780885844000,-151.0,0.00014989,2]
[424434670,1780885844000,-500.0,0.00014999,2]
[424434657,1780885844000,-155.164914,0.00014989,2]
[424434641,1780885844000,-500.0,0.000149,2]
[424434663,1780885844000,-300.0,0.00014998,2]
[424434635,1780885844000,-500.0,0.000149,2]
[424434637,1780885844000,-500.0,0.000149,2]
[424434639,1780885844000,-500.0,0.000149,2]
[424434638,1780885844000,-500.0,0.000149,2]
[424434636,1780885844000,-500.0,0.000149,2]
[424434643,1780885844000,-500.0,0.000149,2]
[424434642,1780885844000,-500.0,0.000149,2]
[424434644,1780885844000,-500.0,0.000149,2]
[424434640,1780885844000,-500.0,0.000149,2]
[424434646,1780885844000,-1449.71,0.00014955,2]
[424434645,1780885844000,-150.0,0.00014926,2]
[424434647,1780885844000,-500.0,0.00014969,2]
[424434651,1780885844000,-156.2882429,0.00014986,2]
[424434652,1780885844000,-168.49878071,0.00014986,2]
[424434649,1780885844000,-153.84603978,0.00014986,2]
[424434650,1780885844000,-154.58509942,0.00014986,2]
[424434653,1780885844000,-500.0,0.00014988,2]
[424434648,1780885844000,-500.0,0.00014969,2]
[424434654,1780885844000,-120979.18828967,0.00014989,2]
[424434661,1780885844000,-1896.65637071,0.0001499,2]
[424434723,1780885845000,-300.0,0.00014999,2]
[424434717,1780885845000,-500.0,0.00014999,2]
[424434720,1780885845000,-306.49459151,0.00014999,2]
[424434713,1780885845000,-500.0,0.00014999,2]
[424434721,1780885845000,-300.0,0.00014999,2]
[424434715,1780885845000,-500.0,0.00014999,2]
[424434719,1780885845000,-2000.0,0.00014999,2]
[424434716,1780885845000,-500.0,0.00014999,2]
[424434714,1780885845000,-500.0,0.00014999,2]
[424434726,1780885845000,-8099.62175,0.00015,2]
[424434711,1780885845000,-500.0,0.00014999,2]
[424434718,1780885845000,-551.97576766,0.00014999,2]
[424434727,1780885845000,-3420717.9201522,0.00015,2]
[424434736,1780885845000,-1228.48,0.00015,2]
[424434725,1780885845000,-2080.83702791,0.00015,2]
[424434734,1780885845000,-1897.48,0.00015,2]
[424434724,1780885845000,-2286092.58345311,0.00015,2]
[424434732,1780885845000,-2000.0,0.00015,2]
[424434735,1780885845000,-150.0,0.00015,2]
[424434729,1780885845000,-6266.88638656,0.00015,2]
[424434733,1780885845000,-913.95,0.00015,2]
[424434728,1780885845000,-351.79652105,0.00015,2]
[424434731,1780885845000,-2000.0,0.00015,2]
[424434738,1780885845000,-2000.0,0.00015,2]
[424434739,1780885845000,-2000.0,0.00015,2]
[424434740,1780885845000,-941.09,0.00015,2]
[424434722,1780885845000,-666.0,0.00014999,2]
[424434730,1780885845000,-7822.84810542,0.00015,2]
[424434712,1780885845000,-500.0,0.00014999,2]
[424434689,1780885845000,-788.08,0.00014999,2]
[424434705,1780885845000,-500.0,0.00014999,2]
[424434686,1780885845000,-788.08,0.00014999,2]
[424434687,1780885845000,-788.08,0.00014999,2]
[424434683,1780885845000,-788.08,0.00014999,2]
[424434682,1780885845000,-788.08,0.00014999,2]
[424434684,1780885845000,-788.08,0.00014999,2]
[424434685,1780885845000,-788.08,0.00014999,2]
[424434688,1780885845000,-788.08,0.00014999,2]
[424434690,1780885845000,-788.1166461,0.00014999,2]
[424434691,1780885845000,-500.0,0.00014999,2]
[424434695,1780885845000,-500.0,0.00014999,2]
[424434697,1780885845000,-500.0,0.00014999,2]
[424434693,1780885845000,-500.0,0.00014999,2]
[424434694,1780885845000,-500.0,0.00014999,2]
[424434696,1780885845000,-500.0,0.00014999,2]
[424434692,1780885845000,-500.0,0.00014999,2]
[424434698,1780885845000,-500.0,0.00014999,2]
[424434741,1780885845000,-2000.0,0.00015,2]
[424434699,1780885845000,-500.0,0.00014999,2]
[424434704,1780885845000,-500.0,0.00014999,2]